Cogmind - Beta 13 @@@ ROGUE MODE // 2024.07.08 @ 02:55:31 Player: Duduxx Result: Destroyed by G-47 Trooper with Particle Gun Performance ------------- Evolutions (2) 1000 Regions Visited (3) 600 Robots Destroyed (43) 215 Value Destroyed (1400) 1400 Prototype IDs (0) 0 Alien Tech Used (0) 0 Bonus (0) 0 TOTAL SCORE: 3215 Bonus ------- None Cogmind --------- Core Integrity 0/550 Matter 266/300 Energy 72/140 System Corruption 0% Temperature Danger (402) Movement Walking (260) Ox2 Location -8/Materials Parts ------- > --- POWER (1) -------- Light Deuterium Engine > --- PROPULSION (3) --- Carbon-fiber Leg > --- UTILITY (5) ------ Large Storage Unit Advanced Targeting Computer Transmission Jammer Light Armor Plating > --- WEAPON (2) ------- Gatling Laser Katana > --- INVENTORY (15) --- Light Nuclear Core Faulty Heavy EM Shotgun Gauss Rifle Flak Cannon Improved Grenade Launcher Peak State ------------ > --- POWER ------------ Light Deuterium Engine > --- PROPULSION ------- Carbon-fiber Leg Carbon-fiber Leg Carbon-fiber Leg > --- UTILITY ---------- Large Storage Unit Improved Sensor Array Advanced Targeting Computer Transmission Jammer Improved Power Shielding > --- WEAPON ----------- Gatling Laser Gatling Laser > --- INVENTORY -------- Light Nuclear Core Carbon-fiber Leg Carbon-fiber Leg Light Armor Plating Heavy EM Shotgun Gauss Rifle Flak Cannon Improved Grenade Launcher Katana [Rating: 36] Favorites ----------- Power Nuclear Core Engine Ion Engine Power Core Nuclear Core Propulsion Carbon-fiber Leg Treads Light Treads Leg Carbon-fiber Leg Wheel Wheel Hover Unit Gravmag System Utility Large Storage Unit Device Sensor Array Storage Large Storage Unit Processor Advanced Targeting Computer Protection Power Shielding Weapon Assault Rifle Energy Gun Gatling Laser Ballistic Gun Assault Rifle Ballistic Cannon Assault Cannon Slashing Weapon Blade Saw Build | -11 -10 -9 -8 ------- Run | Yrd Mat Mat Mat Slots Evolved 4 | . . 2 2 Power . | . . . . Propulsion 1 | . . . 1 Utility 3 | . . 2 1 Weapon . | . . . . Parts Attached 52 | 6 8 5 33 Power 6 | 1 . 1 4 Engine 3 | 1 . . 2 Core 3 | . . 1 2 Reactor . | . . . . Propulsion 16 | 2 3 1 10 Treads 3 | . 2 1 . Leg 9 | . 1 . 8 Wheel 2 | 2 . . . Hover 2 | . . . 2 Flight . | . . . . Utility 17 | 1 4 2 10 Device 4 | . . 1 3 Storage 4 | 1 2 . 1 Processor 4 | . . . 4 Hackware . | . . . . Protection 5 | . 2 1 2 Artifact . | . . . . Weapon 13 | 2 1 1 9 Energy Gun 6 | 1 1 . 4 Energy Cannon . | . . . . Ballistic Gun 2 | 1 . . 1 Ballistic Cannon 3 | . . 1 2 Launcher . | . . . . Special Weapon . | . . . . Impact Weapon . | . . . . Slashing Weapon 2 | . . . 2 Piercing Weapon . | . . . . Special Melee Weapon . | . . . . Unidentified Prototypes . | . . . . Parts Lost 24 | . 1 . 23 Power 1 | . . . 1 Propulsion 9 | . 1 . 8 Utility 7 | . . . 7 Weapon 7 | . . . 7 Highest Loss Streak 12 | . 1 . 12 To Critical Strikes . | . . . . Average Slot Usage (%) 92 | . 92 99 87 Engine 4 | . 14 . 4 Core 5 | . . 10 4 Treads 9 | . 6 22 1 Leg 10 | . 5 . 19 Wheel 1 | . 9 . . Device 8 | . . 11 11 Storage 9 | . 14 11 6 Processor 4 | . . . 8 Protection 16 | . 13 21 13 Energy Gun 7 | . 14 . 9 Ballistic Gun 8 | . 14 11 5 Ballistic Cannon 4 | . . 10 1 Naked Turns . | . . . . Heaviest Build 41 | 13 33 41 41 Greatest Support 45 | 20 40 40 45 Greatest Overweight (x) 9 | . 5 1 9 Average Overweight (x) . | . . . . Largest Inventory Capacity 15 | 8 15 15 15 Average Capacity 12 | 6 10 15 12 Most Carried 13 | 4 9 13 12 Average Carried 8 | 2 7 10 7 Final Capacity 15 | 8 15 15 15 Final Carried 13 | 4 8 13 5 Class Distribution -------------------- 95% | Mutant 4% | Scavenger-Mutant Dominant Class ---------------- Mutant | -10/Materials Mutant | -9/Materials Mutant | -8/Materials Resources | -11 -10 -9 -8 ----------- Run | Yrd Mat Mat Mat Matter Collected 1078 | 150 231 158 539 Remotely . | . . . . Salvage Created 1427 | . 366 227 834 Parts 89 | . 23 28 38 Haulers Intercepted . | . . . . Recyclers Shooed . | . . . . Parts Field Recycled . | . . . . Retrieved Matter . | . . . . Parts Self-Destructed . | . . . . Prevented . | . . . . Kills | -11 -10 -9 -8 ------- Run | Yrd Mat Mat Mat Combat Hostiles Destroyed 41 | . 8 14 19 Guns 32 | . 8 6 18 Cannons 9 | . . 8 1 Classes Destroyed 6 | . 2 2 2 Recycler 1 | . . . 1 Watcher 1 | . 1 . . Swarmer 12 | . . 9 3 Grunt 22 | . 8 3 11 Sentry 5 | . . 2 3 Hunter 2 | . . . 2 Best Kill Streak 4 | . 4 4 4 Combat Bots Only 4 | . 4 4 4 Max Kills in Single Turn 2 | . 2 1 1 Gunslinging 1 | . 1 . . Exploded . | . . . . Melee . | . . . . Uniques/NPCs Destroyed . | . . . . Combat | -11 -10 -9 -8 -------- Run | Yrd Mat Mat Mat Hostile Shots Fired 399 | . 55 79 265 Missed 131 | . 20 31 80 Damage Taken 3521 | 2 420 584 2515 Core 732 | . 81 92 559 Absorbed by Shields 192 | . . . 192 Redirected to Shielding 151 | . . 9 142 Core Remaining (%) 81 | 100 67 77 . Volleys Fired 118 | . 32 34 52 Largest 2 | . 2 2 2 Hottest 160 | . 60 64 160 Shots Fired 231 | . 64 68 99 Gun 181 | . 64 34 83 Cannon 50 | . . 34 16 Launcher . | . . . . Special . | . . . . Kinetic 143 | . 32 68 43 Thermal 88 | . 32 . 56 Explosive . | . . . . Electromagnetic . | . . . . Robot Hit Streak 20 | . 7 10 20 Robot Miss Streak 4 | . 2 4 4 Penetration Max . | . . . . Secondary Targets 5 | . 3 . 2 Max Gunslinging Chain 1 | . 1 . 1 Shots Hit Robots 160 | . 41 39 80 Core Hits 89 | . 18 16 55 Critical Kills . | . . . . Critical Parts Destroyed . | . . . . Critical Strikes 1 | . . 1 . Blast 1 | . . 1 . Melee Attacks 1 | . . . 1 Impact . | . . . . Slashing 1 | . . . 1 Piercing . | . . . . Sneak Attacks . | . . . . Combat Hostiles . | . . . . Follow-up Attacks . | . . . . Damage Inflicted 2948 | 4 494 749 1701 Guns 2117 | . 481 240 1396 Cannons 744 | . . 507 237 Explosions . | . . . . Melee 32 | . . . 32 Ramming 55 | 4 13 2 36 Kinetic 1484 | . 254 747 483 Thermal 1377 | . 227 . 1150 Explosive . | . . . . Electromagnetic . | . . . . Impact . | . . . . Slashing 32 | . . . 32 Piercing . | . . . . Highest Corruption . | . . . . Average Corruption . | . . . . Corruption Purged . | . . . . Corruption Blocked . | . . . . Overload Shots . | . . . . Overflow Damage . | . . . . Projectiles . | . . . . Explosions . | . . . . Melee . | . . . . Knockbacks 10 | . . 8 2 Impact . | . . . . Kinetic 8 | . . 7 1 Secondary 2 | . . 1 1 Self-Inflicted Damage 15 | 2 6 . 7 Shots . | . . . . Rammed 9 | 1 1 1 6 Targets Rammed 12 | 1 1 1 9 Kicked 3 | . . . 3 Crushed . | . . . . Highest Temperature 548 | . 309 216 548 Average Temperature 103 | . 92 55 137 Received Heat Transfer 1367 | . 228 129 1010 Effects 14 | . 2 . 12 Shutdowns 2 | . . . 2 Energy Bleed 1 | . . . 1 Interference 7 | . 2 . 5 Damage (minor) 3 | . . . 3 Damage (major) 1 | . . . 1 Siege Activations . | . . . . Robots Corrupted . | . . . . Combat Hostiles . | . . . . Parts Fried . | . . . . Impact Corruptions . | . . . . Robots Melted . | . . . . Combat Hostiles . | . . . . Parts Melted 5 | . . . 5 Heat Transferred 3125 | . 525 . 2600 Parts Sabotaged . | . . . . Parts Stolen . | . . . . Parts Stripped . | . . . . Power Chain Reactions . | . . . . Alert | -11 -10 -9 -8 ------- Run | Yrd Mat Mat Mat Peak Influence 207 | . 207 190 197 Initial 29 | . . 15 29 Average 90 | . 111 91 84 Maximum Alert Level 1 | . 1 . . Low Security (%) 91 | 100 56 100 100 Level 1 8 | . 43 . . Level 2 . | . . . . Level 3 . | . . . . Level 4 . | . . . . Level 5 . | . . . . High Security . | . . . . Max Security . | . . . . Squads Dispatched 7 | . 3 2 2 Investigation 2 | . 1 . 1 Extermination . | . . . . Reinforcement 5 | . 2 2 1 Assault . | . . . . Garrison . | . . . . Intercept . | . . . . Searches Triggered . | . . . . Construction Impeded . | . . . . Haulers Reinforced . | . . . . Active Scanning Responses . | . . . . Cargo Convoy Interrupts . | . . . . Stealth | -11 -10 -9 -8 --------- Run | Yrd Mat Mat Mat Distress Signals 4 | . . 2 2 Communications Jammed 11 | . . . 11 Distress Signals 9 | . . . 9 Times Spotted 61 | . 11 18 32 Peak Tracking Total 9 | . 3 4 9 Tactical Retreats 4 | . . 1 3 Traps | -11 -10 -9 -8 ------- Run | Yrd Mat Mat Mat Traps Triggered 5 | . 1 . 4 Indirectly . | . . . . Trap Hack Attempts . | . . . . Triggered . | . . . . Disarmed . | . . . . Reprogrammed . | . . . . Reused . | . . . . Traps Extracted . | . . . . Installed . | . . . . Triggered . | . . . . Machines | -11 -10 -9 -8 ---------- Run | Yrd Mat Mat Mat Machines Disabled . | . . . . Max in Single Turn . | . . . . Machines Repaired . | . . . . Machines Dismantled . | . . . . Machines Sabotaged . | . . . . Overloaded Fab Kills . | . . . . Hacking | -11 -10 -9 -8 --------- Run | Yrd Mat Mat Mat Machines Accessed 8 | . 3 1 4 Terminals 6 | . 2 . 4 Fabricators . | . . . . Repair Stations . | . . . . Recycling Units 1 | . 1 . . Scanalyzers 1 | . . 1 . Garrison Access . | . . . . Total Hacks 18 | . 5 4 9 Successful 8 | . 1 4 3 Failed 10 | . 4 . 6 Catastrophic 7 | . 3 . 4 Database Lockouts . | . . . . Manual 6 | . 2 . 4 Terminals 13 | . 4 . 9 Fabricators . | . . . . Repair Stations . | . . . . Recycling Units 1 | . 1 . . Scanalyzers 4 | . . 4 . Garrison Access . | . . . . Terminal Hacks 3 | . . . 3 Robot Analysis 1 | . . . 1 Registered Components 1 | . . . 1 Zone Layout 1 | . . . 1 Fabricator Hacks . | . . . . Repair Station Hacks . | . . . . Recycling Unit Hacks 1 | . 1 . . Report Inventory 1 | . 1 . . Scanalyzer 4 | . . 4 . Insert Component 2 | . . 2 . Analyze 2 | . . 2 . Garrison Access Hacks . | . . . . Unauthorized Hacks . | . . . . Terminals . | . . . . Fabricators . | . . . . Repair Stations . | . . . . Recycling Units . | . . . . Scanalyzers . | . . . . Garrison Access . | . . . . Data Cores Recovered . | . . . . Used . | . . . . Hacking Detections 6 | . 3 . 3 Full Trace Events 3 | . 2 . 1 Feedback Events . | . . . . Feedback Blocked . | . . . . Robot Schematics Acquired . | . . . . Robots Built . | . . . . Authchips . | . . . . Time . | . . . . Total Robot Build Rating . | . . . . Part Schematics Acquired 2 | . . 2 . Parts Built . | . . . . Authchips . | . . . . Time . | . . . . Total Part Build Rating . | . . . . Parts Repaired . | . . . . Time . | . . . . Parts Recycled . | . . . . Recycled Matter . | . . . . Retrieved Matter . | . . . . Retrieved Components . | . . . . Parts Scanalyzed 2 | . . 2 . Part Schematics Acquired 2 | . . 2 . Parts Damaged . | . . . . Bothacking | -11 -10 -9 -8 ------------ Run | Yrd Mat Mat Mat Used RIF Installer . | . . . . Robots Hacked . | . . . . Non-combat . | . . . . Combat . | . . . . Robot Hacks Applied . | . . . . Relay Couplers Released . | . . . . Fabnet Peak Effective % . | . . . . Robots Rewired . | . . . . Allies Hacked . | . . . . Hacks Repelled . | . . . . Allies | -11 -10 -9 -8 -------- Run | Yrd Mat Mat Mat Total Allies . | . . . . Largest Group . | . . . . Highest-Rated Group . | . . . . Highest-Rated Ally . | . . . . Total Orders . | . . . . Ally Attacks . | . . . . Total Damage . | . . . . Kills . | . . . . Allies Corrupted . | . . . . Allies Melted . | . . . . Intel | -11 -10 -9 -8 ------- Run | Yrd Mat Mat Mat Robot Analysis Total 1 | . . . 1 Derelict Logs Recovered . | . . . . Drone Launches . | . . . . Drone Recoveries . | . . . . Exploration | -11 -10 -9 -8 ------------- Run | Yrd Mat Mat Mat Turns Passed 2619 | 51 497 878 1193 Spaces Moved 1390 | 47 246 318 779 Core 83 | 1 3 . 79 Treads 421 | . 61 318 42 Legs 647 | . 71 . 576 Wheels 157 | 46 111 . . Hover 82 | . . . 82 Flight . | . . . . Fastest Speed 50 | 50 80 160 50 Average Speed 149 | 79 147 236 118 Slowest Speed 500 | 80 300 240 500 Overloaded Moves . | . . . . Propulsion Burnouts . | . . . . Robots Hopped . | . . . . Cave-ins Triggered . | . . . . Exploration Rate (%) 33 | 4 45 34 52 Regions Visited 3 Branch Regions . Pre-discovered Areas . | . . . . Known Exits Taken . | . . . . Unknown Exits Taken 3 | 1 1 1 . Scrap Searched . | . . . . Spaces Dug . | . . . . Terrain Destroyed 9 | . . 8 1 Melee . | . . . . Projectile 9 | . . 8 1 AOE . | . . . . Terrain Rammed . | . . . . Walls Destroyed . | . . . . Machines Disabled . | . . . . Actions | -11 -10 -9 -8 --------- Run | Yrd Mat Mat Mat Total 1684 | 57 320 379 928 Wait 55 | . 18 1 36 Move 1388 | 47 245 317 779 Hop . | . . . . Pick Up 33 | 4 7 12 10 Fast Attach 31 | 6 3 2 20 Attach 18 | . 3 2 13 Detach 9 | . 3 2 4 Swap 3 | . 2 1 . Drop 17 | . 6 7 4 Fire 118 | . 32 34 52 Melee 1 | . . . 1 Ram 7 | . 1 . 6 Kick 3 | . . . 3 Crush 1 | . . 1 . Escape Stasis . | . . . . Rewire . | . . . . Trap . | . . . . Miscellaneous . | . . . . Route ------- -11/Scrapyard -10/Materials -9/Materials -8/Materials (discovered 2 exits: [*Fac x2]) History --------- Turn | Location | Event 11 | -11/Scrapyard | Discovered new exit (range 15) 52 | -11/Scrapyard | Entered Materials 178 | -10/Materials | Discovered new exit (range 9) 345 | -10/Materials | Build established: Mutant 549 | -10/Materials | Entered another Materials area 549 | -9/Materials | Evolved 2 slots: Utility x2 1411 | -9/Materials | Discovered new exit (range 7) 1427 | -9/Materials | Entered another Materials area 1427 | -8/Materials | Evolved 2 slots: Propulsion x1, Utility x1 1595 | -8/Materials | Core integrity fell below 50% 1622 | -8/Materials | Lost 12 parts (1p2n4u5w) 1917 | -8/Materials | Core integrity fell below 20% 2203 | -8/Materials | Discovered new exit (range 5) 2380 | -8/Materials | Discovered new exit (range 5) 2620 | -8/Materials | Destroyed by G-47 Trooper with Particle Gun Last Messages --------------- 02604_ Y-45 Defender destroyed. 02607_ Power failure, Lgt. Deuterium Engine shutdown. 02608_ Critical hit (Burn: +37). 02609_ Overheating: Carbon-fiber Leg damaged (-63). 02610_ Overheating: Adv. Targeting Computer damaged (-5). 02612_ Overheating: Gatling Laser damaged (-17). 02612_ Carbon-fiber Leg destroyed. 02613_ Overheating: System interference. 02613_ Gatling Laser temporarily disabled. 02613_ Imp. Sensor Array temporarily disabled. 02616_ Imp. Sensor Array destroyed. 02617_ Power failure, Lgt. Deuterium Engine shutdown. 02618_ Overheating: Transmission Jammer damaged (-2). 02618_ Gatling Laser destroyed. 02620_ Carbon-fiber Leg destroyed. Map ----- +----------------------------------------------------+ | ?????????????????????????????????????????????????? | | ?????????????????????????????????????????????????? | | ?????????????????????????????????????????????????? | | ?????????????????????????????????????????????????? | | ?????????????????????????????????????????????????? | | ?????????????????????????????????????????????????? | | ?????????????????????????????????????????????????? | | ?????????????????????????????????????????????????? | | ?????????????????????????????????????????????????? | | ?????????????????????????????????????????????????? | | ??????????????????? ???????????????????????????? | | ????????????????? ???????????????????????????? | | ????????????????? ???????????????????????????? | | #????????????????" ????!??????????????????????? | | #????????????????" ???????????????????????????? | | #????????????? """ ???????????????????????????? | | +????????????? "" ???????????????????????????? | | #?????????#??? """ #??????????????????????????? | | #?????????# "" #??????????????????????????? | | #?????????# "" #??????????????????????????? | | #??????????? " ############???????????????? | | #????????????? # ????????????????? | | #???????????????? # """ """????????????????? | | #??????????????????# !# """""""""???????????????? | | #??????????????????# g/[ """"" #?????????????? | | #??????????????????# #= @= #?????????????? | | #??????????????????# ####g#########?????????????? | | #??????????????????# !%= ????????????? | | #??????????????????# [ ????????????? | | #??????????????????# ##+#########???????????????? | | #?################## #??????????????????????????? | | #?# """ ## ! ## #??????????????????????????? | | #?# "T" ## !## #??????????????????????????? | | #?# ## ## #??????????????????????????? | | #?# """ ## """ ## #??????????????????????????? | | #?# """ ## """ ## #??????????????????????????? | | ### """ ! ## """ ## ##?????????????????????????? | | # [=%!* ##+###/## #?????????????????????????? | | ## """ + "" #?????????????????????????? | | ## """ ## T #?????????????????????????? | | ## """ !## ##### #?????????????????????????? | | ## ## #???######?????????????????????????? | | ########+### #??????????????????????????????????? | | ## #??????????????????????????????????? | | """ ## #??????????????????????????????????? | | """ ## ######????????#?????????????????????????? | | """ ## #?????????????#????????????????#????????? | | ## ###############????############# ??????? | | ####### ?? ###### | | ## ? | +----------------------------------------------------+ Best States ------------- Heat Dissipation 31 Energy Generation 14 Energy Capacity 250 Matter Stores 300 Matter Capacity 300 Sight Range 16 Robot Scan Range 15 Terrain Scan Density 10 Jamming Range 12 Armor Coverage 150 Power Shielding 66 Evasion (%) 55 Targeting Accuracy 10 Recoil Reduction 2 Item Schematics ----------------- Carbon-fiber Leg | -9/Materials | Scanalyzed Nuclear Core | -9/Materials | Scanalyzed Robot Schematics ------------------ None Fabricated ------------ Nothing Alien Tech Used ----------------- None Achievements -------------- None Challenges ------------ None Game ------ Seed HelicalAdvancedRouter Manual? 0 Play Time 00:20:01 Cumulative 29.9 hours Start 2024.07.08 @ 02:35:44 End 2024.07.08 @ 02:55:31 Sessions 1 Manual Loads 0 Difficulty Rogue Special Mode None Game No. 73 Rogue 73 Adventurer 0 Explorer 0 Win Type - Total 0 Types 0/0/0/0/0/0/0/0/0 Lore% 23 Gallery% 29 Achievement% 21 Wizard Run 0 Options --------- Layout 1 ASCII 0 Keyboard 1 Movement Arrows Keybinds 0 Fullscreen 1 Font 24/Smallcaps Map View 50x35 Zoom Use 0% Tactical HUD 1 Map Filters NONE Filters NONE Steam 1 RUN: d7011cda-7c61-407b-9ce6-f6ffd08fda7f